{"text_format":"3","workbook":"xlsx","n_sheets":1,"sheets":["Utlånsark for biblioteksbøker"],"not_rendered":{"defined_names":4},"read":"whole","date_system":"1900"}

{"sheet":"Utlånsark for biblioteksbøker","index":0,"n_rows":9,"n_cols":8,"rows_kept":9,"merged":[[0,1,0,4],[0,5,0,6]]}
[null,"Utlånsark for biblioteksbøker",{"$nulls":3},"ANTALL DAGER TIL FORSINKET LEVERING: ",null,10]
["Forfalt","ELEV","KONTAKT-E-POSTADRESSE","KONTAKTTELEFON","BOKTITTEL","LÅNT DATO","LEVERT TILBAKE DATO","DAGER"]
[{"$f":"IFERROR(((Bøker[[#This Row],[LÅNT DATO]]+DagerInnvilget)<TODAY())*(LEN(Bøker[[#This Row],[LEVERT TILBAKE DATO]])=0)*(LEN(Bøker[[#This Row],[LÅNT DATO]])>0),0)","v":0},"Linda Skistad","noen@example.com","555-0100","Little House on the Prairie",{"$f":"DATE(YEAR(TODAY()),1,14)","v":"2018-01-14"},{"$f":"DATE(YEAR(TODAY()),1,21)","v":"2018-01-21"},{"$f":"IFERROR(IF(Bøker[[#This Row],[LEVERT TILBAKE DATO]]=\"\",IF(Bøker[[#This Row],[LÅNT DATO]]<>\"\", TODAY()-Bøker[[#This Row],[LÅNT DATO]],\"\"),Bøker[[#This Row],[LEVERT TILBAKE DATO]]-Bøker[[#This Row],[LÅNT DATO]]), \"\")","v":7}]
[{"$f":"IFERROR(((Bøker[[#This Row],[LÅNT DATO]]+DagerInnvilget)<TODAY())*(LEN(Bøker[[#This Row],[LEVERT TILBAKE DATO]])=0)*(LEN(Bøker[[#This Row],[LÅNT DATO]])>0),0)","v":0},"Ove Hennum","noen@example.com","555-0101","Charlotte's Web",{"$f":"DATE(YEAR(TODAY()),2,15)","v":"2018-02-15"},{"$f":"DATE(YEAR(TODAY()),2,18)","v":"2018-02-18"},{"$f":"IFERROR(IF(Bøker[[#This Row],[LEVERT TILBAKE DATO]]=\"\",IF(Bøker[[#This Row],[LÅNT DATO]]<>\"\", TODAY()-Bøker[[#This Row],[LÅNT DATO]],\"\"),Bøker[[#This Row],[LEVERT TILBAKE DATO]]-Bøker[[#This Row],[LÅNT DATO]]), \"\")","v":3}]
[{"$f":"IFERROR(((Bøker[[#This Row],[LÅNT DATO]]+DagerInnvilget)<TODAY())*(LEN(Bøker[[#This Row],[LEVERT TILBAKE DATO]])=0)*(LEN(Bøker[[#This Row],[LÅNT DATO]])>0),0)","v":0},"Wilmer Koch","noen@example.com","555-0102","The Phantom Tollbooth",{"$f":"DATE(YEAR(TODAY()),2,17)","v":"2018-02-17"},{"$f":"DATE(YEAR(TODAY()),2,22)","v":"2018-02-22"},{"$f":"IFERROR(IF(Bøker[[#This Row],[LEVERT TILBAKE DATO]]=\"\",IF(Bøker[[#This Row],[LÅNT DATO]]<>\"\", TODAY()-Bøker[[#This Row],[LÅNT DATO]],\"\"),Bøker[[#This Row],[LEVERT TILBAKE DATO]]-Bøker[[#This Row],[LÅNT DATO]]), \"\")","v":5}]
[{"$f":"IFERROR(((Bøker[[#This Row],[LÅNT DATO]]+DagerInnvilget)<TODAY())*(LEN(Bøker[[#This Row],[LEVERT TILBAKE DATO]])=0)*(LEN(Bøker[[#This Row],[LÅNT DATO]])>0),0)","v":0},"Finn Andresen","noen@example.com","555-0103","Mrs. Frisby and the Rats of Nimh",{"$f":"DATE(YEAR(TODAY()),2,17)","v":"2018-02-17"},{"$f":"DATE(YEAR(TODAY()),2,25)","v":"2018-02-25"},{"$f":"IFERROR(IF(Bøker[[#This Row],[LEVERT TILBAKE DATO]]=\"\",IF(Bøker[[#This Row],[LÅNT DATO]]<>\"\", TODAY()-Bøker[[#This Row],[LÅNT DATO]],\"\"),Bøker[[#This Row],[LEVERT TILBAKE DATO]]-Bøker[[#This Row],[LÅNT DATO]]), \"\")","v":8}]
[{"$f":"IFERROR(((Bøker[[#This Row],[LÅNT DATO]]+DagerInnvilget)<TODAY())*(LEN(Bøker[[#This Row],[LEVERT TILBAKE DATO]])=0)*(LEN(Bøker[[#This Row],[LÅNT DATO]])>0),0)","v":0},"Iselin Pilskog","noen@example.com","555-0104","Matilda",{"$f":"DATE(YEAR(TODAY()),2,18)","v":"2018-02-18"},{"$f":"DATE(YEAR(TODAY()),2,28)","v":"2018-02-28"},{"$f":"IFERROR(IF(Bøker[[#This Row],[LEVERT TILBAKE DATO]]=\"\",IF(Bøker[[#This Row],[LÅNT DATO]]<>\"\", TODAY()-Bøker[[#This Row],[LÅNT DATO]],\"\"),Bøker[[#This Row],[LEVERT TILBAKE DATO]]-Bøker[[#This Row],[LÅNT DATO]]), \"\")","v":10}]
[{"$f":"IFERROR(((Bøker[[#This Row],[LÅNT DATO]]+DagerInnvilget)<TODAY())*(LEN(Bøker[[#This Row],[LEVERT TILBAKE DATO]])=0)*(LEN(Bøker[[#This Row],[LÅNT DATO]])>0),0)","v":1},"Helga Hammeren","noen@example.com","555-0105","The Chronicles of Narnia",{"$f":"DATE(YEAR(TODAY()),1,23)","v":"2018-01-23"},null,{"$f":"IFERROR(IF(Bøker[[#This Row],[LEVERT TILBAKE DATO]]=\"\",IF(Bøker[[#This Row],[LÅNT DATO]]<>\"\", TODAY()-Bøker[[#This Row],[LÅNT DATO]],\"\"),Bøker[[#This Row],[LEVERT TILBAKE DATO]]-Bøker[[#This Row],[LÅNT DATO]]), \"\")","v":162}]
[{"$f":"IFERROR(((Bøker[[#This Row],[LÅNT DATO]]+DagerInnvilget)<TODAY())*(LEN(Bøker[[#This Row],[LEVERT TILBAKE DATO]])=0)*(LEN(Bøker[[#This Row],[LÅNT DATO]])>0),0)","v":0},"Ingjerd Espeseth","noen@example.com","555-0106","The Witch of Blackbird Pond",{"$f":"TODAY()","v":"2018-07-04"},null,{"$f":"IFERROR(IF(Bøker[[#This Row],[LEVERT TILBAKE DATO]]=\"\",IF(Bøker[[#This Row],[LÅNT DATO]]<>\"\", TODAY()-Bøker[[#This Row],[LÅNT DATO]],\"\"),Bøker[[#This Row],[LEVERT TILBAKE DATO]]-Bøker[[#This Row],[LÅNT DATO]]), \"\")","v":0}]